[Event "*** Titled Tuesday Blitz"]
[Site "Chess.com"]
[Date "2019.09.03"]
[Round "1"]
[White "FrenchMonster2002"]
[Black "SantoBlue"]
[Result "0-1"]
[WhiteElo "2425"]
[BlackElo "2843"]
[TimeControl "180+2"]
[EndTime "15:08:59 PDT"]
[Termination "SantoBlue won by resignation"]

1. e4 {[%clk 0:03:01.9]} 1... e5 {[%clk 0:02:59.5]} 2. Nf3 {[%clk 0:03:02]} 2...
Nc6 {[%clk 0:03:00.2]} 3. d4 {[%clk 0:03:03.5]} 3... exd4 {[%clk 0:03:00.9]} 4.
Bc4 {[%clk 0:03:05.1]} 4... Nf6 {[%clk 0:03:01.8]} 5. e5 {[%clk 0:03:06.6]} 5...
Ne4 {[%clk 0:02:58.5]} 6. O-O {[%clk 0:02:56.2]} 6... d5 {[%clk 0:02:41]} 7. Bb5
{[%clk 0:02:45]} 7... Bd7 {[%clk 0:02:34.4]} 8. Bxc6 {[%clk 0:02:40.2]} 8...
bxc6 {[%clk 0:02:32.3]} 9. Nxd4 {[%clk 0:02:41.4]} 9... Bc5 {[%clk 0:02:33.7]}
10. f3 {[%clk 0:02:41.1]} 10... Ng5 {[%clk 0:02:33.2]} 11. Be3 {[%clk
0:02:42.7]} 11... O-O {[%clk 0:02:32]} 12. f4 {[%clk 0:02:43.5]} 12... Ne4
{[%clk 0:02:32.9]} 13. Nd2 {[%clk 0:02:44.8]} 13... Nxd2 {[%clk 0:02:34.4]} 14.
Qxd2 {[%clk 0:02:46.7]} 14... f6 {[%clk 0:02:34]} 15. Nb3 {[%clk 0:02:41.5]}
15... Bb6 {[%clk 0:02:27.7]} 16. Qc3 {[%clk 0:02:38.5]} 16... fxe5 {[%clk
0:02:18.3]} 17. fxe5 {[%clk 0:02:38.2]} 17... Qg5 {[%clk 0:02:17.1]} 18. Nc5
{[%clk 0:01:47.1]} 18... Bxc5 {[%clk 0:02:08.2]} 19. Bxc5 {[%clk 0:01:49]} 19...
Rxf1+ {[%clk 0:02:02.8]} 20. Rxf1 {[%clk 0:01:50.9]} 20... h6 {[%clk 0:02:04.2]}
21. Qd4 {[%clk 0:01:21.2]} 21... a6 {[%clk 0:01:56]} 22. Qf4 {[%clk 0:01:18.6]}
22... Qg6 {[%clk 0:01:52]} 23. c3 {[%clk 0:01:14.4]} 23... Rb8 {[%clk
0:01:47.5]} 24. b4 {[%clk 0:01:14.5]} 24... Re8 {[%clk 0:01:48.5]} 25. h3 {[%clk
0:01:05.9]} 25... Bxh3 {[%clk 0:01:48.2]} 26. Rf2 {[%clk 0:00:55.7]} 26... Be6
{[%clk 0:01:44.1]} 27. Kh2 {[%clk 0:00:44.7]} 27... Qh5+ {[%clk 0:01:43.7]} 28.
Kg1 {[%clk 0:00:43.7]} 28... Ra8 {[%clk 0:01:42.7]} 29. a4 {[%clk 0:00:35.6]}
29... Qd1+ {[%clk 0:01:41.9]} 30. Kh2 {[%clk 0:00:36.3]} 30... Qh5+ {[%clk
0:01:36]} 31. Kg1 {[%clk 0:00:36.5]} 31... Re8 {[%clk 0:01:34.6]} 32. a5 {[%clk
0:00:32.8]} 32... Qg6 {[%clk 0:01:32.9]} 33. Bd4 {[%clk 0:00:32.1]} 33... Kh7
{[%clk 0:01:30.8]} 34. Kh2 {[%clk 0:00:31.5]} 34... Re7 {[%clk 0:01:31.1]} 35.
Qg3 {[%clk 0:00:30.2]} 35... Qh5+ {[%clk 0:01:31.6]} 36. Kg1 {[%clk 0:00:30.3]}
36... Bf5 {[%clk 0:01:28.1]} 37. Qf3 {[%clk 0:00:25.5]} 37... Qxf3 {[%clk
0:01:16.5]} 38. Rxf3 {[%clk 0:00:27.4]} 38... Kg6 {[%clk 0:01:13.3]} 39. Kf2
{[%clk 0:00:27]} 39... Re8 {[%clk 0:01:12]} 40. Ke3 {[%clk 0:00:24.9]} 40... h5
{[%clk 0:01:09.4]} 41. g3 {[%clk 0:00:24.6]} 41... Bg4 {[%clk 0:01:08.2]} 42.
Rf2 {[%clk 0:00:22.4]} 42... Be6 {[%clk 0:01:09.5]} 43. Kd2 {[%clk 0:00:21.6]}
43... Kg5 {[%clk 0:01:06.8]} 44. Rf4 {[%clk 0:00:21.2]} 44... Bf5 {[%clk
0:01:03.9]} 45. Ke3 {[%clk 0:00:17]} 45... c5 {[%clk 0:00:56.7]} 46. Bxc5 {[%clk
0:00:13.3]} 46... Rxe5+ {[%clk 0:00:54]} 47. Kd4 {[%clk 0:00:14.8]} 47... Re2
{[%clk 0:00:55.2]} 48. Kxd5 {[%clk 0:00:13.2]} 48... Rg2 {[%clk 0:00:56.4]} 49.
Be7+ {[%clk 0:00:14]} 49... Kg6 {[%clk 0:00:57]} 50. Rf3 {[%clk 0:00:13.3]}
50... Re2 {[%clk 0:00:50.8]} 51. Bh4 {[%clk 0:00:12.5]} 51... Be4+ {[%clk
0:00:51.5]} 0-1

[Event "*** Titled Tuesday Blitz"]
[Site "Chess.com"]
[Date "2019.09.03"]
[Round "1"]
[White "Rakesh"]
[Black "Sanan_Sjugirov"]
[Result "0-1"]
[WhiteElo "2435"]
[BlackElo "2857"]
[TimeControl "180+2"]
[EndTime "15:09:01 PDT"]
[Termination "Sanan_Sjugirov won by checkmate"]

1. e4 {[%clk 0:02:59.5]} 1... c5 {[%clk 0:02:59.7]} 2. c3 {[%clk 0:03:00.4]}
2... Nf6 {[%clk 0:02:59.8]} 3. e5 {[%clk 0:03:01.5]} 3... Nd5 {[%clk 0:03:01]}
4. d4 {[%clk 0:03:03.4]} 4... cxd4 {[%clk 0:03:01.8]} 5. Nf3 {[%clk 0:03:05]}
5... d6 {[%clk 0:03:00.9]} 6. cxd4 {[%clk 0:02:55.8]} 6... Nc6 {[%clk 0:03:01]}
7. Bc4 {[%clk 0:02:56.1]} 7... Nb6 {[%clk 0:03:02.1]} 8. Bb5 {[%clk 0:02:57.1]}
8... a6 {[%clk 0:03:01.3]} 9. Bxc6+ {[%clk 0:02:49.4]} 9... bxc6 {[%clk
0:03:03.2]} 10. O-O {[%clk 0:02:50]} 10... Bg4 {[%clk 0:03:02.9]} 11. h3 {[%clk
0:02:50.4]} 11... Bh5 {[%clk 0:03:03.4]} 12. Nc3 {[%clk 0:02:49]} 12... e6
{[%clk 0:03:02.7]} 13. Bg5 {[%clk 0:02:36.7]} 13... Qd7 {[%clk 0:02:14.1]} 14.
Rc1 {[%clk 0:02:29.4]} 14... d5 {[%clk 0:02:01.9]} 15. Na4 {[%clk 0:02:19.4]}
15... Qc7 {[%clk 0:01:11.5]} 16. Nxb6 {[%clk 0:01:04.1]} 16... Qxb6 {[%clk
0:01:13.4]} 17. Qa4 {[%clk 0:01:04.8]} 17... Rc8 {[%clk 0:01:06.4]} 18. Rc3
{[%clk 0:01:05.1]} 18... Qb5 {[%clk 0:00:57.2]} 19. Qxb5 {[%clk 0:00:43.4]}
19... axb5 {[%clk 0:00:59.1]} 20. Rfc1 {[%clk 0:00:44.4]} 20... Kd7 {[%clk
0:00:59.5]} 21. Nd2 {[%clk 0:00:45.4]} 21... h6 {[%clk 0:00:55]} 22. Be3 {[%clk
0:00:34.8]} 22... b4 {[%clk 0:00:43.1]} 23. Rb3 {[%clk 0:00:31.9]} 23... Be7
{[%clk 0:00:38]} 24. a3 {[%clk 0:00:32.5]} 24... Ra8 {[%clk 0:00:30.4]} 25. axb4
{[%clk 0:00:33.1]} 25... Rhb8 {[%clk 0:00:31.1]} 26. b5 {[%clk 0:00:30]} 26...
Rxb5 {[%clk 0:00:19.7]} 27. Rxb5 {[%clk 0:00:30.8]} 27... cxb5 {[%clk
0:00:21.6]} 28. Nb3 {[%clk 0:00:32.2]} 28... Ra2 {[%clk 0:00:19.7]} 29. Rc2
{[%clk 0:00:07.4]} 29... Bg6 {[%clk 0:00:12.9]} 30. Nc5+ {[%clk 0:00:05.2]}
30... Bxc5 {[%clk 0:00:10.2]} 31. Rxc5 {[%clk 0:00:07.1]} 31... Rxb2 {[%clk
0:00:11.5]} 32. g4 {[%clk 0:00:08.2]} 32... b4 {[%clk 0:00:09.9]} 33. Rb5 {[%clk
0:00:08.8]} 33... b3 {[%clk 0:00:10.6]} 34. Kh2 {[%clk 0:00:09.7]} 34... Rb1
{[%clk 0:00:09.1]} 35. Bd2 {[%clk 0:00:09.6]} 35... Kc6 {[%clk 0:00:09.1]} 36.
Rb8 {[%clk 0:00:10.3]} 36... Bc2 {[%clk 0:00:09.1]} 37. Kg3 {[%clk 0:00:11]}
37... Rd1 {[%clk 0:00:09.4]} 38. Bc3 {[%clk 0:00:11.6]} 38... Rd3+ {[%clk
0:00:10.3]} 39. Kh4 {[%clk 0:00:13]} 39... Rxc3 {[%clk 0:00:10.3]} 40. f4 {[%clk
0:00:14.4]} 40... Rf3 {[%clk 0:00:09.8]} 41. Kh5 {[%clk 0:00:12.6]} 41... Rxh3#
{[%clk 0:00:10.2]} 0-1

[Event "*** Titled Tuesday Blitz"]
[Site "Chess.com"]
[Date "2019.09.03"]
[Round "1"]
[White "JussupowFan"]
[Black "FedaMaster"]
[Result "0-1"]
[WhiteElo "2218"]
[BlackElo "2595"]
[TimeControl "180+2"]
[EndTime "15:09:07 PDT"]
[Termination "FedaMaster won by checkmate"]

1. c4 {[%clk 0:02:57.7]} 1... Nf6 {[%clk 0:02:57.7]} 2. g3 {[%clk 0:02:59.6]}
2... d5 {[%clk 0:02:57.9]} 3. cxd5 {[%clk 0:02:59.4]} 3... Nxd5 {[%clk
0:02:59.2]} 4. Bg2 {[%clk 0:03:00.3]} 4... g6 {[%clk 0:02:58.7]} 5. Nc3 {[%clk
0:03:01.3]} 5... Nb6 {[%clk 0:02:59.4]} 6. h4 {[%clk 0:03:02.1]} 6... h6 {[%clk
0:02:59.9]} 7. d3 {[%clk 0:03:00.8]} 7... Bg7 {[%clk 0:03:00.8]} 8. Be3 {[%clk
0:03:01.1]} 8... Nc6 {[%clk 0:02:52.4]} 9. Qd2 {[%clk 0:02:59.7]} 9... Nd4
{[%clk 0:02:51.9]} 10. Nf3 {[%clk 0:02:57.7]} 10... Nf5 {[%clk 0:02:52.6]} 11.
Bf4 {[%clk 0:02:56.6]} 11... c6 {[%clk 0:02:42.2]} 12. O-O {[%clk 0:02:51.5]}
12... Nd7 {[%clk 0:00:45]} 13. d4 {[%clk 0:02:42.6]} 13... Nb6 {[%clk
0:00:42.7]} 14. Rfd1 {[%clk 0:02:17.2]} 14... Nc4 {[%clk 0:00:32.8]} 15. Qc2
{[%clk 0:02:17.8]} 15... Qb6 {[%clk 0:00:29.6]} 16. b3 {[%clk 0:02:14.4]} 16...
Na3 {[%clk 0:00:21.8]} 17. Qd3 {[%clk 0:02:09.4]} 17... O-O {[%clk 0:00:15.5]}
18. e4 {[%clk 0:02:06.8]} 18... Nd6 {[%clk 0:00:16]} 19. Na4 {[%clk 0:02:06.8]}
19... Qb5 {[%clk 0:00:16.1]} 20. Qe3 {[%clk 0:01:55.4]} 20... Kh7 {[%clk
0:00:16.6]} 21. Rac1 {[%clk 0:01:52.6]} 21... Bg4 {[%clk 0:00:15.1]} 22. Rc5
{[%clk 0:01:51]} 22... Qa6 {[%clk 0:00:16.4]} 23. Rdc1 {[%clk 0:01:43.5]} 23...
Bxf3 {[%clk 0:00:17.4]} 24. Bxf3 {[%clk 0:01:42.9]} 24... Rad8 {[%clk
0:00:19.1]} 25. h5 {[%clk 0:01:43]} 25... g5 {[%clk 0:00:19.2]} 26. Be5 {[%clk
0:01:34.8]} 26... f6 {[%clk 0:00:19.5]} 27. Bxd6 {[%clk 0:01:34.1]} 27... exd6
{[%clk 0:00:20.9]} 28. R5c3 {[%clk 0:01:32.3]} 28... Rfe8 {[%clk 0:00:19.6]} 29.
Be2 {[%clk 0:01:30.3]} 29... Qa5 {[%clk 0:00:18.9]} 30. Bd3 {[%clk 0:01:30.5]}
30... Kg8 {[%clk 0:00:17.8]} 31. Nb2 {[%clk 0:01:28.8]} 31... Nb5 {[%clk
0:00:16.8]} 32. Nc4 {[%clk 0:01:28.4]} 32... Qc7 {[%clk 0:00:16.9]} 33. R3c2
{[%clk 0:01:26]} 33... d5 {[%clk 0:00:15.7]} 34. Nd2 {[%clk 0:01:25.9]} 34...
dxe4 {[%clk 0:00:17.1]} 35. Bxb5 {[%clk 0:01:26.6]} 35... f5 {[%clk 0:00:16.8]}
36. Bc4+ {[%clk 0:01:27.1]} 36... Kh8 {[%clk 0:00:17.7]} 37. Nf1 {[%clk
0:01:12.6]} 37... Bxd4 {[%clk 0:00:18.5]} 38. Qe2 {[%clk 0:01:08.8]} 38... f4
{[%clk 0:00:18.5]} 39. Qg4 {[%clk 0:01:07.9]} 39... e3 {[%clk 0:00:17]} 40. fxe3
{[%clk 0:01:08]} 40... fxe3 {[%clk 0:00:18.4]} 41. Be2 {[%clk 0:01:07.3]} 41...
Bb6 {[%clk 0:00:18.6]} 42. Rc4 {[%clk 0:01:01.2]} 42... Qf7 {[%clk 0:00:18.4]}
43. Kh1 {[%clk 0:00:31.9]} 43... Rf8 {[%clk 0:00:19.5]} 44. Re4 {[%clk
0:00:22.8]} 44... Qd5 {[%clk 0:00:18.5]} 45. Rc4 {[%clk 0:00:17.3]} 45... Rf2
{[%clk 0:00:16.4]} 46. Kg1 {[%clk 0:00:12.3]} 46... Rdf8 {[%clk 0:00:16.8]} 47.
Rcd4 {[%clk 0:00:10.9]} 47... Bxd4 {[%clk 0:00:17.2]} 48. Rxd4 {[%clk
0:00:12.2]} 48... Qg2# {[%clk 0:00:18.4]} 0-1

[Event "*** Titled Tuesday Blitz"]
[Site "Chess.com"]
[Date "2019.09.03"]
[Round "1"]
[White "DrMelekess"]
[Black "przemekpiotrowski"]
[Result "1-0"]
[WhiteElo "2694"]
[BlackElo "2329"]
[TimeControl "180+2"]
[EndTime "15:09:10 PDT"]
[Termination "DrMelekess won by resignation"]

1. d4 {[%clk 0:02:58.3]} 1... Nf6 {[%clk 0:02:52.7]} 2. Nf3 {[%clk 0:02:58.4]}
2... g6 {[%clk 0:02:53]} 3. Nbd2 {[%clk 0:02:58.1]} 3... Bg7 {[%clk 0:02:54.2]}
4. e4 {[%clk 0:02:58.8]} 4... d6 {[%clk 0:02:55.5]} 5. c3 {[%clk 0:02:59]} 5...
O-O {[%clk 0:02:56.8]} 6. Be2 {[%clk 0:02:59.9]} 6... e5 {[%clk 0:02:55.9]} 7.
dxe5 {[%clk 0:03:00.2]} 7... dxe5 {[%clk 0:02:56.5]} 8. O-O {[%clk 0:03:01.8]}
8... Nbd7 {[%clk 0:02:55.7]} 9. Qc2 {[%clk 0:03:02.5]} 9... c6 {[%clk
0:02:56.2]} 10. Re1 {[%clk 0:03:00.9]} 10... Qc7 {[%clk 0:02:57.5]} 11. a4
{[%clk 0:03:00.8]} 11... a5 {[%clk 0:02:57.4]} 12. Nc4 {[%clk 0:03:01.2]} 12...
b6 {[%clk 0:02:53.2]} 13. b4 {[%clk 0:02:42.8]} 13... axb4 {[%clk 0:02:49.9]}
14. cxb4 {[%clk 0:02:43.7]} 14... Ba6 {[%clk 0:02:35.2]} 15. Bb2 {[%clk
0:02:40.3]} 15... Ne8 {[%clk 0:02:25.8]} 16. Red1 {[%clk 0:02:35.7]} 16... Rd8
{[%clk 0:02:22.6]} 17. Rac1 {[%clk 0:02:24.6]} 17... Bxc4 {[%clk 0:02:14.4]} 18.
Qxc4 {[%clk 0:02:18.4]} 18... c5 {[%clk 0:02:14.5]} 19. Qa6 {[%clk 0:01:17]}
19... Nb8 {[%clk 0:02:00.5]} 20. Qc4 {[%clk 0:00:57]} 20... Rxd1+ {[%clk
0:02:00]} 21. Rxd1 {[%clk 0:00:57.7]} 21... Qe7 {[%clk 0:01:42.5]} 22. bxc5
{[%clk 0:00:54.7]} 22... bxc5 {[%clk 0:01:44.4]} 23. Ba3 {[%clk 0:00:55]} 23...
Nd7 {[%clk 0:01:37.5]} 24. Qb5 {[%clk 0:00:50.5]} 24... Nef6 {[%clk 0:01:30.3]}
25. a5 {[%clk 0:00:51]} 25... Rb8 {[%clk 0:01:25.5]} 26. Qa4 {[%clk 0:00:50.7]}
26... Bf8 {[%clk 0:01:24.2]} 27. Bb5 {[%clk 0:00:48.7]} 27... Rd8 {[%clk
0:01:14.8]} 28. h3 {[%clk 0:00:44.2]} 28... Qe6 {[%clk 0:00:54.1]} 29. a6 {[%clk
0:00:31.7]} 29... Nb6 {[%clk 0:00:53.9]} 30. Rxd8 {[%clk 0:00:18.4]} 30... Nxa4
{[%clk 0:00:54.1]} 31. a7 {[%clk 0:00:19.5]} 31... Nb6 {[%clk 0:00:21.6]} 32.
Bxc5 {[%clk 0:00:19.1]} 32... Nfd7 {[%clk 0:00:20.3]} 33. Bxd7 {[%clk
0:00:17.8]} 33... Qc4 {[%clk 0:00:08.5]} 34. Rxf8+ {[%clk 0:00:06.9]} 34... Kg7
{[%clk 0:00:08.6]} 35. Bxb6 {[%clk 0:00:07.9]} 35... Qc1+ {[%clk 0:00:09]} 36.
Kh2 {[%clk 0:00:08.6]} 36... Kxf8 {[%clk 0:00:07.7]} 37. a8=Q+ {[%clk
0:00:09.2]} 37... Kg7 {[%clk 0:00:09.2]} 38. Qd5 {[%clk 0:00:10.3]} 38... Qf4+
{[%clk 0:00:09.9]} 39. Kh1 {[%clk 0:00:10.8]} 39... Qc1+ {[%clk 0:00:10.4]} 40.
Ng1 {[%clk 0:00:11.8]} 1-0

[Event "*** Titled Tuesday Blitz"]
[Site "Chess.com"]
[Date "2019.09.03"]
[Round "1"]
[White "valeriocarnicelli"]
[Black "Denis_Palkovich"]
[Result "1/2-1/2"]
[WhiteElo "2586"]
[BlackElo "2224"]
[TimeControl "180+2"]
[EndTime "15:09:10 PDT"]
[Termination "Game drawn - insufficient material"]

1. e4 {[%clk 0:02:59.7]} 1... c6 {[%clk 0:03:00]} 2. d4 {[%clk 0:03:00.5]} 2...
d5 {[%clk 0:03:01]} 3. e5 {[%clk 0:03:01.5]} 3... c5 {[%clk 0:03:01.7]} 4. dxc5
{[%clk 0:03:02.1]} 4... e6 {[%clk 0:03:00.1]} 5. Nf3 {[%clk 0:03:00.8]} 5...
Bxc5 {[%clk 0:02:59.9]} 6. a3 {[%clk 0:03:00.3]} 6... Ne7 {[%clk 0:02:53.8]} 7.
Bd3 {[%clk 0:03:00.3]} 7... Nbc6 {[%clk 0:02:51.8]} 8. O-O {[%clk 0:03:00.8]}
8... Ng6 {[%clk 0:02:51.3]} 9. b4 {[%clk 0:03:01.2]} 9... Bb6 {[%clk 0:02:51.4]}
10. Bb2 {[%clk 0:03:02.3]} 10... O-O {[%clk 0:02:40.2]} 11. Nbd2 {[%clk
0:02:59.6]} 11... f6 {[%clk 0:02:22.5]} 12. exf6 {[%clk 0:02:59.3]} 12... gxf6
{[%clk 0:02:22.6]} 13. c4 {[%clk 0:03:00]} 13... Nf4 {[%clk 0:02:07.3]} 14. Qc2
{[%clk 0:02:54.2]} 14... Nxd3 {[%clk 0:02:00.7]} 15. Qxd3 {[%clk 0:02:54.7]}
15... dxc4 {[%clk 0:01:59.7]} 16. Qxc4 {[%clk 0:02:52]} 16... Qd5 {[%clk
0:01:25.6]} 17. Qxd5 {[%clk 0:02:34]} 17... exd5 {[%clk 0:01:25.9]} 18. Nb3
{[%clk 0:02:35.9]} 18... Bg4 {[%clk 0:01:09.5]} 19. Nfd4 {[%clk 0:02:36.3]}
19... Ne5 {[%clk 0:01:02.1]} 20. f3 {[%clk 0:02:31.9]} 20... Bh5 {[%clk
0:00:38.7]} 21. Rfd1 {[%clk 0:02:23.3]} 21... Nc4 {[%clk 0:00:38.4]} 22. Bc3
{[%clk 0:02:19.9]} 22... Rac8 {[%clk 0:00:28.9]} 23. Be1 {[%clk 0:01:29.4]}
23... Ne3 {[%clk 0:00:16.5]} 24. Rd3 {[%clk 0:01:14.9]} 24... Nc2 {[%clk
0:00:15.6]} 25. Rad1 {[%clk 0:01:15.5]} 25... Nxa3 {[%clk 0:00:06.2]} 26. Bf2
{[%clk 0:01:16.2]} 26... Nc4 {[%clk 0:00:06.2]} 27. Nc5 {[%clk 0:01:13.9]} 27...
Bxc5 {[%clk 0:00:07.1]} 28. bxc5 {[%clk 0:01:14.9]} 28... Nb2 {[%clk 0:00:06.9]}
29. Nf5 {[%clk 0:01:07.2]} 29... Nxd3 {[%clk 0:00:06.5]} 30. Ne7+ {[%clk
0:01:04.5]} 30... Kf7 {[%clk 0:00:07.2]} 31. Nxc8 {[%clk 0:01:05.3]} 31... Nxf2
{[%clk 0:00:07.4]} 32. Nd6+ {[%clk 0:01:06.6]} 32... Ke6 {[%clk 0:00:08]} 33.
Kxf2 {[%clk 0:01:08.5]} 33... Bg6 {[%clk 0:00:07.2]} 34. Re1+ {[%clk 0:01:09]}
34... Kd7 {[%clk 0:00:07]} 35. Nxb7 {[%clk 0:01:01.7]} 35... Kc6 {[%clk
0:00:05.8]} 36. Na5+ {[%clk 0:01:00.9]} 36... Kxc5 {[%clk 0:00:06.4]} 37. Rc1+
{[%clk 0:01:02]} 37... Kb5 {[%clk 0:00:04.8]} 38. Nb7 {[%clk 0:01:01.6]} 38...
a5 {[%clk 0:00:03.6]} 39. Nd6+ {[%clk 0:01:02.8]} 39... Kb4 {[%clk 0:00:03.7]}
40. f4 {[%clk 0:01:03]} 40... Be4 {[%clk 0:00:03.6]} 41. g4 {[%clk 0:01:02.2]}
41... Ra8 {[%clk 0:00:03.4]} 42. Ke3 {[%clk 0:01:02.2]} 42... a4 {[%clk
0:00:04.7]} 43. Nxe4 {[%clk 0:00:57.9]} 43... dxe4 {[%clk 0:00:06.6]} 44. Kxe4
{[%clk 0:00:59.5]} 44... a3 {[%clk 0:00:07.9]} 45. Kf5 {[%clk 0:01:00.5]} 45...
a2 {[%clk 0:00:08.5]} 46. Ra1 {[%clk 0:01:01.7]} 46... Ra6 {[%clk 0:00:09.4]}
47. h4 {[%clk 0:01:02.4]} 47... Kb3 {[%clk 0:00:08.1]} 48. h5 {[%clk 0:00:57.3]}
48... Kb2 {[%clk 0:00:07.7]} 49. Rh1 {[%clk 0:00:58.1]} 49... a1=Q {[%clk
0:00:07.9]} 50. Rxa1 {[%clk 0:00:59]} 50... Kxa1 {[%clk 0:00:09.8]} 51. g5
{[%clk 0:00:58.7]} 51... fxg5 {[%clk 0:00:10.7]} 52. fxg5 {[%clk 0:00:57]} 52...
Kb2 {[%clk 0:00:12.2]} 53. g6 {[%clk 0:00:58.1]} 53... hxg6+ {[%clk 0:00:11.1]}
54. hxg6 {[%clk 0:00:59.3]} 54... Kc3 {[%clk 0:00:11.6]} 55. g7 {[%clk
0:01:00.2]} 55... Ra8 {[%clk 0:00:12.6]} 56. Kf6 {[%clk 0:01:01.2]} 56... Kd4
{[%clk 0:00:14.1]} 57. Kf7 {[%clk 0:01:02.5]} 57... Ke5 {[%clk 0:00:14.8]} 58.
g8=Q {[%clk 0:01:02]} 58... Rxg8 {[%clk 0:00:14.5]} 59. Kxg8 {[%clk 0:01:03.7]}
1/2-1/2

[Event "*** Titled Tuesday Blitz"]
[Site "Chess.com"]
[Date "2019.09.03"]
[Round "1"]
[White "vanyakuba"]
[Black "IMTominho"]
[Result "0-1"]
[WhiteElo "2359"]
[BlackElo "2711"]
[TimeControl "180+2"]
[EndTime "15:09:14 PDT"]
[Termination "IMTominho won on time"]

1. e4 {[%clk 0:03:01.2]} 1... c6 {[%clk 0:02:58.9]} 2. d4 {[%clk 0:03:01.6]}
2... d5 {[%clk 0:03:00.1]} 3. exd5 {[%clk 0:03:03.1]} 3... cxd5 {[%clk
0:03:00.9]} 4. c4 {[%clk 0:03:04.7]} 4... Nf6 {[%clk 0:03:01.5]} 5. Nc3 {[%clk
0:03:06]} 5... e6 {[%clk 0:03:01]} 6. Nf3 {[%clk 0:03:05.9]} 6... Bb4 {[%clk
0:03:01.5]} 7. cxd5 {[%clk 0:03:05.8]} 7... Nxd5 {[%clk 0:03:01.6]} 8. Bd2
{[%clk 0:03:05.9]} 8... Nc6 {[%clk 0:03:02.4]} 9. Bd3 {[%clk 0:03:06.4]} 9...
Be7 {[%clk 0:02:51.4]} 10. a3 {[%clk 0:02:59.1]} 10... O-O {[%clk 0:02:47.3]}
11. O-O {[%clk 0:02:59.2]} 11... Nf6 {[%clk 0:02:44.8]} 12. Bg5 {[%clk
0:02:59.3]} 12... b6 {[%clk 0:02:43]} 13. Rc1 {[%clk 0:02:47.8]} 13... Bb7
{[%clk 0:02:39.7]} 14. Bc2 {[%clk 0:02:45.8]} 14... Re8 {[%clk 0:02:24.7]} 15.
Qd3 {[%clk 0:02:46.1]} 15... g6 {[%clk 0:02:25.6]} 16. Rfd1 {[%clk 0:02:46.6]}
16... Nd5 {[%clk 0:02:25]} 17. Bh6 {[%clk 0:02:35.6]} 17... Nxc3 {[%clk
0:02:22.8]} 18. Qxc3 {[%clk 0:02:30.9]} 18... Bf6 {[%clk 0:02:22.5]} 19. Ne5
{[%clk 0:02:00.8]} 19... Rc8 {[%clk 0:02:16.1]} 20. Qe3 {[%clk 0:02:01.2]} 20...
Bg7 {[%clk 0:02:04.2]} 21. Bxg7 {[%clk 0:01:56.8]} 21... Kxg7 {[%clk 0:02:06.1]}
22. Ba4 {[%clk 0:01:57.1]} 22... Qd5 {[%clk 0:02:02]} 23. Nxc6 {[%clk
0:01:50.7]} 23... Bxc6 {[%clk 0:02:00.4]} 24. Bxc6 {[%clk 0:01:47.1]} 24... Rxc6
{[%clk 0:02:01.3]} 25. Rxc6 {[%clk 0:01:46.1]} 25... Qxc6 {[%clk 0:02:03.2]} 26.
Rc1 {[%clk 0:01:46.9]} 26... Qd6 {[%clk 0:01:27.7]} 27. h4 {[%clk 0:01:36]}
27... Rd8 {[%clk 0:01:25.2]} 28. h5 {[%clk 0:01:23.6]} 28... Qxd4 {[%clk
0:01:10.4]} 29. h6+ {[%clk 0:01:24.1]} 29... Kf6 {[%clk 0:01:11.7]} 30. Qf3+
{[%clk 0:00:59.9]} 30... Ke7 {[%clk 0:01:10.5]} 31. b4 {[%clk 0:00:45.8]} 31...
Rd7 {[%clk 0:01:03.2]} 32. g3 {[%clk 0:00:35.6]} 32... Qd2 {[%clk 0:01:02]} 33.
Rc8 {[%clk 0:00:20.2]} 33... Qxh6 {[%clk 0:01:02.1]} 34. b5 {[%clk 0:00:13.5]}
34... Qd2 {[%clk 0:00:57.9]} 35. Kh2 {[%clk 0:00:06]} 35... h5 {[%clk
0:00:55.9]} 36. Rc4 {[%clk 0:00:02.1]} 36... Qd5 {[%clk 0:00:54.4]} 37. Qc3
{[%clk 0:00:02.7]} 37... Qxb5 {[%clk 0:00:43.6]} 38. Rc8 {[%clk 0:00:03.8]}
38... e5 {[%clk 0:00:36.3]} 39. a4 {[%clk 0:00:03.2]} 39... Qd5 {[%clk
0:00:35.7]} 40. Qb4+ {[%clk 0:00:03.1]} 40... Kf6 {[%clk 0:00:36.7]} 41. Qf8
{[%clk 0:00:04.1]} 41... Qf3 {[%clk 0:00:28.8]} 42. Rc2 {[%clk 0:00:04.9]} 42...
Rd1 {[%clk 0:00:21.2]} 43. Qh8+ {[%clk 0:00:03.9]} 43... Kf5 {[%clk 0:00:21.6]}
44. g4+ {[%clk 0:00:04.7]} 44... hxg4 {[%clk 0:00:22.2]} 45. Qc8+ {[%clk
0:00:03.3]} 45... Kg5 {[%clk 0:00:21.6]} 0-1